bitfinex/quotes_SOLUSD_20250908
["timestamp","ask_amount","ask_price","bid_price","bid_amount"]
[1757345272399,18.88133236,216.19,216.14,96.68]
[1757345272808,14.25559401,216.19,216.14,101.3065803]
[1757345273007,18.88117338,216.19,216.14,101.3065803]
[1757345273407,18.88117338,216.19,216.14,96.68]
[1757345273715,13.59559401,216.19,216.15,0.35]
[1757345274105,13.59559401,216.2,216.15,0.35]
[1757345274423,13.59559401,216.18,216.15,0.35]
[1757345274619,13.59559401,216.18,216.14,101.30662496]
[1757345274922,13.59559401,216.18,216.14,101.65662496]
[1757345276007,13.59559401,216.18,216.15,0.35]
[1757345276397,13.59559401,216.18,216.16,37.4]
[1757345278308,13.59559401,216.18,216.16,42.02614262]
[1757345278626,58.7,216.19,216.16,42.37614262]
[1757345278822,0.66,216.18,216.14,33.28]
[1757345279008,14.25559401,216.17,216.14,33.28]
[1757345279318,11.56390212,216.19,216.15,37.4]
[1757345279319,13.59559401,216.16,216.15,37.4]
[1757345287528,13.59559401,216.16,216.15,42.37641684]
[1757345288048,0.76,216.21,216.15,53.94245894]
[1757345288049,0.06,216.21,216.15,53.94245894]
[1757345288343,0.06,216.21,216.19,26.0]
[1757345288622,0.06,216.21,216.2,37.38]
[1757345288802,14.35559401,216.21,216.2,37.38]
[1757345289222,13.65559401,216.21,216.2,37.38]
[1757345290240,0.06,216.21,216.2,37.38]
[1757345292329,0.06,216.21,216.2,37.36]
[1757345293325,0.0120139,216.21,216.2,42.3353469]
[1757345293720,0.0120139,216.21,216.2,41.9853469]
[1757345294517,0.0120139,216.21,216.19,4.6255401]
[1757345294722,0.0120139,216.21,216.2,37.36]
[1757345296226,0.0120139,216.21,216.19,26.0]
[1757345296518,0.7120139,216.21,216.2,37.36]
[1757345296837,13.59559401,216.2,216.17,26.0]
[1757345297029,13.59559401,216.2,216.18,37.36]
[1757345297938,0.0120139,216.21,216.2,26.0]
[1757345298119,0.0120139,216.21,216.2,63.36]
[1757345299036,0.0120139,216.21,216.2,26.0]
[1757345300026,0.0120139,216.21,216.2,63.34]
[1757345300027,0.7120139,216.21,216.2,63.34]
[1757345300327,0.0120139,216.21,216.2,63.34]
[1757345301231,0.0120139,216.21,216.2,96.6]
[1757345302038,0.0120139,216.21,216.2,70.6]
[1757345304336,13.59559401,216.23,216.22,26.0]
[1757345304512,14.29559401,216.23,216.22,63.34]
[1757345305226,13.59559401,216.23,216.22,63.34]
[1757345305426,14.29559401,216.23,216.22,63.34]
[1757345306538,14.29559401,216.23,216.22,26.0]
[1757345306838,14.29559401,216.23,216.22,63.34]
[1757345308134,18.92029918,216.23,216.22,26.0]
[1757345308317,18.92029918,216.23,216.22,63.34]
[1757345308742,18.92029918,216.23,216.22,26.0]
[1757345308928,18.92029918,216.23,216.22,37.32]
[1757345309539,18.92029918,216.23,216.22,63.32]
[1757345309732,18.92029918,216.23,216.22,26.0]
[1757345310131,18.92029918,216.23,216.22,63.32]
[1757345310938,18.92029918,216.23,216.22,26.0]
[1757345311331,18.92029918,216.23,216.22,63.32]
[1757345311534,18.92029918,216.23,216.22,26.0]
[1757345311737,18.92029918,216.23,216.22,63.32]
[1757345312633,18.92029918,216.23,216.22,26.0]
[1757345312834,30.48206211,216.23,216.2,33.26]
[1757345313040,0.7,216.22,216.21,37.32]
[1757345313236,14.29559401,216.22,216.2,33.26]
[1757345313426,64.49559401,216.21,216.2,33.26]
[1757345313624,64.49559401,216.21,216.2,70.58]
[1757345313947,69.12072698,216.21,216.2,70.58]
[1757345315726,64.49559401,216.21,216.2,70.58]
[1757345316225,69.12072698,216.21,216.2,70.58]
[1757345316832,64.49559401,216.21,216.2,70.58]
[1757345318045,52.09646804,216.21,216.2,70.61]
[1757345318354,13.87507805,216.27,216.23,26.0]
[1757345318536,0.72,216.33,216.27,26.0]
[1757345318746,0.72,216.33,216.28,37.3]
[1757345318947,0.72,216.39,216.31,26.0]
[1757345319145,13.88738161,216.41,216.35,26.0]
[1757345319146,0.02,216.41,216.35,26.0]
[1757345319450,0.72,216.4,216.36,37.3]
[1757345319749,4.62149921,216.38,216.37,37.3]
[1757345319929,14.31559401,216.38,216.37,37.3]
[1757345320129,13.59559401,216.38,216.37,37.3]
[1757345320348,14.31559401,216.38,216.37,37.3]
[1757345320557,13.59559401,216.38,216.37,37.3]
[1757345321252,13.59559401,216.37,216.32,0.35]
[1757345321636,13.59559401,216.37,216.33,37.3]
[1757345322242,4.62156589,216.38,216.31,26.0]
[1757345322443,5.16301572,216.37,216.31,26.0]
[1757345322656,14.31559401,216.36,216.32,37.3]
[1757345322841,13.59559401,216.34,216.32,37.3]
[1757345323040,13.59559401,216.32,216.31,26.0]
[1757345323451,13.59559401,216.32,216.31,63.3]
[1757345323638,13.59559401,216.32,216.31,26.0]
[1757345323963,13.59559401,216.33,216.31,26.0]
[1757345324464,13.59559401,216.33,216.32,37.28]
[1757345324760,29.90087403,216.32,216.25,0.35]
[1757345325053,13.59559401,216.3,216.26,26.0]
[1757345325256,13.59559401,216.3,216.22,0.35]
[1757345325462,13.59559401,216.28,216.23,37.28]
[1757345325659,0.72,216.27,216.23,37.28]
[1757345325865,13.59559401,216.28,216.23,37.28]
[1757345326068,0.72,216.26,216.23,37.28]
[1757345326239,18.21944382,216.27,216.26,26.0]
[1757345326438,18.93944382,216.27,216.26,37.28]
[1757345327442,13.59559401,216.26,216.2,0.03]
[1757345327644,18.03860973,216.26,216.21,33.26]
[1757345327851,13.59559401,216.24,216.21,33.26]
[1757345328049,13.59559401,216.22,216.21,33.26]
[1757345328246,13.59559401,216.22,216.21,70.54]
[1757345328558,14.31559401,216.24,216.21,70.54]
[1757345328952,16.18347435,216.27,216.21,70.54]
[1757345328953,13.59559401,216.26,216.21,70.54]
[1757345329165,14.31559401,216.26,216.22,37.28]
[1757345329346,4.62427745,216.25,216.22,37.28]
[1757345329967,13.59559401,216.24,216.23,37.28]
[1757345330154,13.59559401,216.24,216.21,33.26]
[1757345330462,13.59559401,216.24,216.22,37.28]
[1757345331467,4.62470517,216.23,216.22,37.28]
[1757345331764,4.62470517,216.23,216.21,33.26]
[1757345332160,4.62470517,216.23,216.22,37.28]
[1757345332544,13.59559401,216.24,216.22,37.28]
[1757345332864,13.59559401,216.24,216.23,37.28]
[1757345333767,13.59559401,216.22,216.21,33.26]
[1757345333945,13.59559401,216.22,216.21,70.54]
[1757345334155,29.90087403,216.23,216.21,70.54]
[1757345334474,43.49646804,216.23,216.22,37.28]
[1757345334767,43.49646804,216.23,216.21,33.26]
[1757345334963,43.49646804,216.23,216.22,37.28]
[1757345335354,29.90087403,216.23,216.22,37.28]
[1757345335870,13.59559401,216.28,216.22,63.28]
[1757345336047,18.93937819,216.28,216.22,63.28]
[1757345336242,18.93937819,216.28,216.22,26.0]
[1757345336558,13.87058742,216.34,216.26,26.0]
[1757345336762,13.87058742,216.34,216.23,37.61]
[1757345336763,13.87058742,216.34,216.3,26.0]
[1757345337075,0.72,216.36,216.33,26.0]
[1757345337250,0.72,216.35,216.34,37.26]
[1757345337873,13.59559401,216.36,216.34,37.26]
[1757345338662,14.31559401,216.36,216.34,37.26]
[1757345339873,18.93773406,216.35,216.34,37.26]
[1757345340263,13.59559401,216.34,216.28,13.86481802]
[1757345340463,5.34214005,216.35,216.29,37.26]
[1757345340671,13.59559401,216.34,216.3,37.26]
[1757345340858,0.72,216.33,216.3,37.26]
[1757345341177,13.59559401,216.32,216.3,37.26]
[1757345342073,13.59559401,216.33,216.3,37.26]
[1757345342479,4.6224922,216.34,216.3,37.26]
[1757345342655,5.3424922,216.34,216.3,37.26]
[1757345343695,13.59559401,216.33,216.3,37.26]
[1757345344060,0.07026651,216.43,216.33,26.0]
[1757345344258,18.23646437,216.41,216.37,26.0]
[1757345344573,0.72,216.4,216.38,37.24]
[1757345344951,18.23646437,216.41,216.38,37.24]
[1757345345381,18.95646437,216.41,216.38,37.24]
[1757345346175,29.78861075,216.41,216.38,37.24]
[1757345346372,13.59559401,216.39,216.38,37.24]
[1757345346569,14.30559401,216.39,216.38,37.24]
[1757345346963,0.71,216.39,216.38,37.24]
[1757345347370,13.59559401,216.4,216.38,37.24]
[1757345347881,14.30559401,216.4,216.38,37.24]
[1757345348084,18.92672294,216.4,216.38,37.24]
[1757345348257,14.30559401,216.4,216.38,37.24]
[1757345348457,0.02,216.41,216.38,0.35]
[1757345348762,0.02,216.41,216.35,0.35]
[1757345349076,13.61559401,216.41,216.35,0.35]
[1757345349574,0.02,216.41,216.36,37.24]
[1757345349778,0.02,216.41,216.37,0.35]
[1757345350279,0.02,216.41,216.38,4.62149921]
[1757345350574,0.02,216.41,216.39,37.24]
[1757345350773,0.02,216.41,216.39,51.18559401]
[1757345350958,0.02,216.41,216.4,0.35]
[1757345351159,0.07026651,216.43,216.4,50.85]
[1757345351464,23.78449669,216.47,216.44,26.0]
[1757345351673,23.78449669,216.47,216.45,37.24]
[1757345351866,23.78449669,216.47,216.46,26.0]
[1757345351867,23.46168608,216.47,216.46,26.0]
[1757345352080,23.46168608,216.47,216.46,67.83979118]
[1757345352465,23.46168608,216.47,216.46,63.22]
[1757345354763,23.46168608,216.47,216.46,81.69244512]
[1757345355164,23.46168608,216.47,216.46,77.07265394]
[1757345355378,23.46168608,216.47,216.46,51.07265394]
[1757345356090,23.46168608,216.47,216.46,37.22]
[1757345356292,23.52168608,216.47,216.46,37.22]
[1757345356588,23.52168608,216.47,216.46,63.22]
[1757345357196,24.23168608,216.47,216.46,37.22]
[1757345357487,23.52168608,216.47,216.46,37.22]
[1757345358572,28.85126385,216.47,216.46,37.22]
[1757345358990,13.59559401,216.46,216.41,33.26]
[1757345359297,0.71,216.45,216.42,37.2]
[1757345362096,0.71,216.44,216.42,37.2]
[1757345363481,18.21556441,216.46,216.42,37.2]
[1757345363681,0.71,216.45,216.42,37.2]
[1757345363881,0.71,216.44,216.42,37.2]
[1757345364489,29.90087403,216.45,216.42,37.2]
[1757345364702,0.71,216.44,216.42,37.2]
[1757345365394,0.71,216.43,216.42,37.2]
[1757345366503,13.59559401,216.42,216.33,33.24]
[1757345366798,0.71,216.41,216.34,37.2]
[1757345366996,0.71,216.41,216.34,63.2]
[1757345367200,0.71,216.41,216.34,37.2]
[1757345367577,23.52168608,216.47,216.33,33.24]
[1757345367578,28.14134315,216.47,216.35,37.2]
[1757345367777,28.14134315,216.47,216.38,26.0]
[1757345367978,14.30559401,216.46,216.35,13.85649292]
[1757345368205,16.43146505,216.44,216.36,37.2]
[1757345368375,13.59559401,216.41,216.36,37.2]
[1757345368698,0.71,216.4,216.36,37.2]
[1757345368872,53.551262,216.47,216.36,37.2]
[1757345368873,0.71,216.39,216.36,37.2]
[1757345369074,13.59559401,216.41,216.36,37.2]
[1757345369302,14.30559401,216.41,216.36,37.2]
[1757345369484,14.30559401,216.41,216.33,59.24]
[1757345369485,2.83587104,216.39,216.33,59.24]
[1757345369683,2.83587104,216.39,216.34,37.18]
[1757345370008,2.83587104,216.38,216.34,37.18]
[1757345370379,2.83587104,216.38,216.33,33.24]
[1757345370582,2.83587104,216.39,216.34,37.18]
[1757345370792,2.83587104,216.35,216.33,33.24]
[1757345371098,2.83587104,216.34,216.33,33.24]
[1757345371295,2.83587104,216.34,216.33,70.42]
[1757345371498,3.54587104,216.35,216.33,70.42]
[1757345371690,13.59559401,216.38,216.33,70.42]
[1757345371691,2.83587104,216.34,216.33,70.42]
[1757345371879,3.54587104,216.34,216.33,70.42]
[1757345372078,8.16822474,216.34,216.33,70.42]
[1757345372390,3.54587104,216.34,216.33,70.42]
[1757345372589,8.16822474,216.34,216.33,70.42]
[1757345373003,3.54587104,216.34,216.33,70.42]
[1757345373808,53.0019644,216.44,216.33,70.42]
[1757345373809,0.71,216.43,216.36,26.0]
[1757345373978,0.71,216.43,216.37,41.8016201]
[1757345374700,3.54587104,216.43,216.37,41.8016201]
[1757345374899,8.16632971,216.43,216.37,41.8016201]
[1757345375076,3.54587104,216.43,216.37,41.8016201]
[1757345375398,0.71,216.43,216.37,41.8016201]
[1757345375991,5.33044114,216.43,216.37,37.18]
[1757345376191,2.83587104,216.44,216.37,37.18]
[1757345376391,2.83587104,216.45,216.37,37.18]
[1757345376588,2.83587104,216.46,216.37,41.80169589]
[1757345376906,35.07078832,216.47,216.37,41.80169589]
[1757345377091,2.83587104,216.46,216.37,42.47169589]
[1757345377292,35.07078832,216.47,216.38,0.67]
[1757345377293,23.52168608,216.47,216.38,0.67]
[1757345377593,30.97715748,216.47,216.38,0.67]
[1757345377788,28.14128644,216.47,216.38,0.67]
[1757345378003,2.83587104,216.46,216.38,0.67]
[1757345378187,21.05132618,216.46,216.39,4.62128564]
[1757345378386,13.59559401,216.46,216.4,37.18]
[1757345378602,18.21540082,216.46,216.4,37.18]
[1757345378802,0.72,216.45,216.4,37.18]
[1757345378988,3.55587104,216.45,216.4,37.18]
[1757345379182,33.45674507,216.45,216.4,37.18]
[1757345379395,30.62087403,216.45,216.4,37.18]
[1757345379702,0.72,216.44,216.4,37.18]
[1757345379900,0.72,216.43,216.4,37.18]
[1757345380289,4.62021807,216.44,216.4,37.18]
[1757345380490,5.34021807,216.44,216.4,37.18]
[1757345380693,2.83587104,216.42,216.4,37.18]
[1757345380896,3.55587104,216.42,216.4,37.18]
[1757345381205,4.62021807,216.44,216.4,37.18]
[1757345381206,14.31559401,216.41,216.4,37.18]
[1757345382590,18.93645256,216.41,216.4,37.18]
[1757345383096,18.21645256,216.41,216.4,37.18]
[1757345383295,21.0523236,216.41,216.4,37.18]
[1757345383499,13.59559401,216.4,216.33,33.27]
[1757345383698,17.15146505,216.4,216.34,37.18]
[1757345383896,24.24168608,216.47,216.37,26.0]
[1757345384099,23.52168608,216.47,216.41,26.0]
[1757345384406,28.14131662,216.47,216.42,37.22]
[1757345384600,28.14131662,216.47,216.42,37.89]
[1757345384810,23.52168608,216.47,216.42,37.89]
[1757345385007,23.52168608,216.47,216.42,41.84054701]
[1757345385302,23.52168608,216.47,216.45,26.0]
[1757345385611,23.52168608,216.47,216.46,37.89]
[1757345386891,23.52168608,216.47,216.46,5.28979118]
[1757345387092,23.52168608,216.47,216.46,42.48979118]
[1757345388891,23.52168608,216.47,216.46,42.98979118]
[1757345390507,23.52168608,216.47,216.46,42.31979118]
[1757345390727,23.52168608,216.47,216.46,0.5]
[1757345390894,23.52168608,216.47,216.46,37.68]
[1757345391923,23.52168608,216.47,216.46,0.5]
[1757345392100,23.52168608,216.47,216.46,37.68]
[1757345392593,23.52168608,216.47,216.46,42.96979118]
[1757345392793,23.52168608,216.47,216.46,8.46612266]
[1757345392993,23.52168608,216.47,216.46,27.17]
[1757345393218,23.52168608,216.47,216.46,26.5]
[1757345393601,23.52168608,216.47,216.46,63.82]
[1757345393796,23.52168608,216.47,216.46,37.82]
[1757345394402,23.52168608,216.47,216.46,0.5]
[1757345394609,24.24168608,216.47,216.46,0.5]
[1757345394808,23.52168608,216.47,216.46,0.5]
[1757345395011,23.52168608,216.47,216.46,37.8]
[1757345395415,23.52168608,216.47,216.46,0.5]
[1757345395601,23.52168608,216.47,216.46,37.8]
[1757345395806,23.52168608,216.47,216.46,0.5]
[1757345396700,23.52168608,216.47,216.46,37.78]
[1757345400520,23.52168608,216.47,216.46,26.5]
[1757345400825,23.52168608,216.47,216.46,37.72]
[1757345401124,28.86126385,216.47,216.46,0.5]
[1757345401426,24.24168608,216.47,216.46,37.72]
[1757345401717,24.24168608,216.47,216.46,0.5]
[1757345401900,45.2927289,216.47,216.46,37.72]
[1757345402318,24.24168608,216.47,216.46,37.72]
[1757345402515,28.86126385,216.47,216.46,37.72]
[1757345402924,45.2927289,216.47,216.46,37.72]
[1757345403118,45.2927289,216.47,216.46,0.5]
[1757345403334,13.59559401,216.46,216.34,3.07991111]
[1757345403535,2.83587104,216.41,216.34,3.07991111]
[1757345403726,3.55587104,216.41,216.34,3.07991111]
[1757345403908,0.72,216.41,216.34,7.702251]
[1757345404231,0.72,216.41,216.35,7.29612266]
[1757345404533,0.72,216.44,216.36,37.24]
[1757345404732,13.59559401,216.46,216.37,0.67]
[1757345404912,23.52168608,216.47,216.4,26.0]
[1757345405238,0.72,216.46,216.41,37.24]
[1757345405413,3.55587104,216.45,216.41,37.24]
[1757345405620,28.14127129,216.47,216.41,37.24]
[1757345405621,0.68,216.44,216.41,37.24]
[1757345405818,0.68,216.43,216.4,26.0]
[1757345406016,2.83587104,216.41,216.34,7.70216251]
[1757345406230,0.68,216.42,216.38,26.0]
[1757345406414,2.83587104,216.44,216.39,37.24]
[1757345406617,14.27559401,216.46,216.4,37.24]
[1757345406924,13.59559401,216.4,216.34,2.40991111]
[1757345407110,2.83587104,216.36,216.33,33.27]
[1757345407309,3.51587104,216.36,216.34,37.3]
[1757345407515,2.83587104,216.36,216.33,33.27]
[1757345407710,3.51587104,216.35,216.34,37.3]
[1757345408525,17.11146505,216.35,216.34,37.3]
[1757345408724,13.59559401,216.34,216.33,33.27]
[1757345408937,0.68,216.38,216.33,70.55]
[1757345409730,0.5,216.43,216.33,70.55]
[1757345409731,3.51587104,216.37,216.33,70.55]
[1757345410119,2.83587104,216.35,216.33,70.55]
[1757345410536,2.83587104,216.38,216.33,71.22]
[1757345410830,2.83587104,216.38,216.34,0.67]
[1757345411037,13.59559401,216.39,216.35,0.67]
[1757345411335,5.30085975,216.41,216.36,37.32]
[1757345411515,5.30085975,216.41,216.37,0.67]
[1757345411516,0.68,216.41,216.37,0.67]
[1757345411716,14.09559401,216.43,216.39,26.0]
[1757345411910,14.09559401,216.43,216.4,37.32]
[1757345411911,14.77559401,216.43,216.4,37.32]
[1757345412112,22.23191814,216.43,216.4,37.32]
[1757345412313,26.38585995,216.43,216.4,37.32]
[1757345412538,21.26540686,216.42,216.34,0.67]
[1757345412738,21.26540686,216.42,216.36,26.0]
[1757345412912,18.89625676,216.42,216.37,26.0]
[1757345413230,18.89625676,216.42,216.38,37.32]
[1757345413532,18.21625676,216.42,216.38,37.32]
[1757345413740,18.21625676,216.42,216.36,4.62183447]
[1757345413741,6.98981285,216.39,216.33,33.27]
[1757345413953,20.58540686,216.4,216.34,37.3]
[1757345414236,13.59559401,216.38,216.34,37.3]
[1757345414435,30.58087403,216.37,216.34,37.3]
[1757345414808,35.20265033,216.37,216.34,37.3]
[1757345415008,6.98981285,216.35,216.33,33.27]
[1757345415237,7.66981285,216.34,216.33,33.27]
[1757345415416,21.26540686,216.34,216.33,33.27]
[1757345415617,21.26540686,216.34,216.33,70.57]
[1757345416019,20.58540686,216.34,216.33,70.57]
[1757345416428,13.59559401,216.34,216.33,70.57]
[1757345417034,28.65815528,216.34,216.33,70.57]
[1757345417239,29.33815528,216.34,216.33,70.57]
[1757345417921,29.33815528,216.34,216.33,33.27]
[1757345418237,29.33815528,216.34,216.33,70.55]
[1757345418537,13.59559401,216.29,216.23,33.24]
[1757345418726,24.03580158,216.24,216.23,33.24]
[1757345418928,28.66029288,216.24,216.23,33.24]
[1757345419129,28.66029288,216.24,216.23,70.64]
[1757345419325,18.22008531,216.24,216.23,70.64]
[1757345419519,28.66029288,216.24,216.23,70.64]
[1757345420442,29.34029288,216.24,216.23,70.64]
[1757345420651,29.34029288,216.24,216.23,33.24]
[1757345421012,29.34029288,216.24,216.23,70.64]
[1757345422833,18.90008531,216.24,216.23,70.64]
[1757345423042,24.03580158,216.24,216.23,70.64]
[1757345423353,29.34029288,216.24,216.23,70.64]
[1757345424135,29.34029288,216.24,216.23,33.24]
[1757345424644,29.34029288,216.24,216.23,70.64]
[1757345425629,28.66029288,216.24,216.23,70.64]
[1757345425834,13.59559401,216.24,216.23,70.64]
[1757345426156,24.03580158,216.24,216.23,70.64]
[1757345426734,132.4,216.26,216.23,71.31]
[1757345426934,132.4,216.26,216.24,0.67]
[1757345427137,145.99559401,216.26,216.25,37.42]
[1757345427744,145.99559401,216.26,216.23,33.24]
[1757345427745,13.59559401,216.25,216.23,33.24]
[1757345427975,24.03580158,216.25,216.24,37.4]
[1757345428133,24.03580158,216.25,216.23,33.24]
[1757345428340,24.03580158,216.24,216.23,33.24]
[1757345428747,24.03580158,216.24,216.23,70.64]
[1757345429153,24.03580158,216.24,216.23,33.24]
[1757345429463,28.66029288,216.24,216.23,70.64]
[1757345429671,28.66029288,216.24,216.23,33.24]
[1757345429846,29.34029288,216.24,216.23,33.24]
[1757345430663,29.34029288,216.24,216.23,70.6]
[1757345430898,29.34029288,216.24,216.23,33.24]
[1757345431170,29.34029288,216.24,216.23,70.62]
[1757345432853,145.99559401,216.23,216.21,1e-08]
[1757345433069,156.43580158,216.22,216.21,1e-08]
[1757345433270,157.11580158,216.22,216.21,20.52000001]
[1757345433453,13.59559401,216.16,216.14,0.2]
[1757345433647,24.03580158,216.16,216.14,0.2]
[1757345434468,13.59559401,216.17,216.14,0.2]
[1757345434675,13.59559401,216.17,216.16,37.36]
[1757345434968,24.03580158,216.17,216.16,37.36]
[1757345435575,28.66179038,216.17,216.16,37.36]
[1757345435770,18.22158281,216.17,216.16,37.36]
[1757345436082,29.37179038,216.17,216.16,37.36]
[1757345436286,29.37179038,216.17,216.14,0.2]
[1757345436466,11.15020757,216.16,216.14,0.2]
[1757345436659,11.15020757,216.16,216.15,37.33]
[1757345436860,10.44020757,216.16,216.15,37.33]
[1757345437574,28.66200439,216.16,216.15,37.33]
[1757345437779,29.37200439,216.16,216.15,37.33]
[1757345437972,29.37200439,216.16,216.15,0.03]
[1757345438177,29.37200439,216.16,216.15,37.35]
[1757345438409,29.37200439,216.16,216.15,0.03]
[1757345438683,29.37200439,216.16,216.15,37.35]
[1757345438854,18.93179682,216.16,216.15,37.35]
[1757345439061,28.66200439,216.16,216.15,37.35]
[1757345439362,13.59559401,216.16,216.15,38.01]
[1757345441592,13.59559401,216.16,216.15,37.99]
[1757345442863,13.59559401,216.16,216.15,37.97]
[1757345443482,0.06,216.24,216.15,42.59641684]
[1757345443674,0.06,216.24,216.16,0.66]
[1757345443875,0.06,216.24,216.18,26.0]
[1757345444072,0.06,216.24,216.19,37.92]
[1757345444466,0.06,216.24,216.2,0.66]
[1757345444780,0.06,216.24,216.21,0.66]
[1757345445583,13.59559401,216.23,216.21,0.66]
[1757345445882,13.59559401,216.23,216.18,26.66]
[1757345446185,13.59559401,216.21,216.19,37.26]
[1757345446579,13.59559401,216.21,216.15,30.65622924]
[1757345446781,41.5,216.2,216.16,26.66]
[1757345446977,41.5,216.2,216.17,0.66]
[1757345447288,41.5,216.2,216.18,0.66]
[1757345447493,13.59559401,216.19,216.16,0.66]
[1757345447697,13.59559401,216.19,216.16,26.66]
[1757345447871,13.59559401,216.19,216.17,37.24]
[1757345448278,13.59559401,216.19,216.17,37.9]
[1757345448587,41.5,216.2,216.18,0.66]
[1757345448791,41.5,216.2,216.19,0.66]
[1757345449293,41.5,216.2,216.19,37.9]
[1757345449597,41.5,216.2,216.19,37.24]
[1757345450769,41.5,216.2,216.19,37.9]
[1757345451170,41.5,216.2,216.19,42.52556084]
[1757345451594,146.05559401,216.24,216.19,42.52556084]
[1757345451595,41.5,216.23,216.19,42.52556084]
[1757345451793,41.5,216.23,216.2,0.66]
[1757345451977,41.5,216.23,216.21,0.66]
[1757345452174,41.5,216.23,216.22,37.24]
[1757345452383,55.09559401,216.23,216.22,37.24]
[1757345453173,55.09559401,216.23,216.21,26.0]
[1757345453777,55.09559401,216.23,216.22,37.24]
[1757345453978,55.09559401,216.23,216.22,37.9]
[1757345454173,55.09559401,216.23,216.22,37.24]
[1757345456000,13.59559401,216.23,216.22,37.24]
[1757345456799,13.65559401,216.23,216.22,37.24]
[1757345458422,13.65559401,216.23,216.21,26.0]
[1757345458610,13.65559401,216.23,216.22,37.24]
[1757345459184,14.36559401,216.23,216.22,37.24]
[1757345459404,14.36559401,216.23,216.22,41.78776587]
[1757345459613,14.36559401,216.23,216.22,4.54776587]
[1757345459810,14.36559401,216.23,216.22,37.24]
[1757345460006,13.65559401,216.23,216.22,37.24]
[1757345460380,13.59559401,216.22,216.21,26.0]
[1757345460690,24.03580158,216.22,216.18,33.94]
[1757345460886,13.59559401,216.2,216.19,37.24]
[1757345461315,13.59559401,216.21,216.18,33.28]
[1757345461482,0.06,216.23,216.19,37.9]
[1757345462014,0.06,216.23,216.21,26.0]
[1757345462015,41.5,216.22,216.21,26.0]
[1757345462201,41.5,216.22,216.21,63.9]
[1757345462394,41.5,216.22,216.21,63.24]
[1757345462803,41.5,216.22,216.21,63.9]
[1757345464006,0.06,216.23,216.21,63.9]
[1757345464195,0.06,216.23,216.22,0.66]
[1757345464511,0.06,216.27,216.25,26.0]
[1757345464710,0.71,216.39,216.28,26.0]
[1757345464918,0.71,216.39,216.28,63.24]
[1757345465119,0.71,216.39,216.28,63.9]
[1757345465324,0.71,216.39,216.29,0.66]
[1757345465507,10.44020757,216.41,216.33,26.0]
[1757345465508,0.7,216.41,216.33,26.0]
[1757345465708,0.7,216.41,216.37,26.0]
[1757345466015,0.7,216.41,216.38,37.24]
[1757345466016,0.7,216.4,216.38,37.24]
[1757345466227,13.59559401,216.38,216.34,0.71]
[1757345466423,13.59559401,216.38,216.35,37.24]
[1757345466602,13.59559401,216.38,216.36,36.38]
[1757345466798,13.59559401,216.38,216.37,37.24]
[1757345467323,24.03580158,216.38,216.37,37.24]
[1757345467501,24.73580158,216.38,216.29,0.71]
[1757345467816,10.44020757,216.33,216.32,26.0]
[1757345468121,10.44020757,216.34,216.32,63.22]
[1757345468892,13.59559401,216.33,216.32,63.22]
[1757345469094,24.03580158,216.33,216.32,37.22]
[1757345469318,24.73580158,216.33,216.32,37.22]
[1757345469514,24.03580158,216.33,216.32,37.22]
[1757345470331,24.73580158,216.33,216.32,37.22]